[Event "FISCA IM Round Robin 2022"]
[Site "Cap Aurora"]
[Date "2022.06.28"]
[Round "8.2"]
[White "Manolache, Marius"]
[Black "Srinath, Rao S.V."]
[Result "1/2-1/2"]
[ECO "D78"]
[WhiteElo "2481"]
[BlackElo "2316"]
[Annotator "TA"]
[PlyCount "94"]
[EventDate "2022.06.22"]
[EventType "tourn"]
[EventCountry "ROU"]
[SourceTitle "playchess.com"]
[Source "ChessBase"]
[SourceQuality "1"]
[TimeControl "40/5400+30:900+30"]

{[%evp 14,94,10,18,43,30,43,42,62,39,46,50,64,55,65,53,75,75,68,56,50,31,28,18,41,0,0,0,0,0,-1,-43,-49,-52,-45,-54,-39,-35,-46,-47,15,11,16,-40,-18,-68,-43,-45,-53,-35,0,-50,-8,-8,-17,-8,-10,-8,-7,-8,-14,-14,-10,-20,0,0,0,0,0,0,0,0,0,0,0,0,0,0,0,0,0,0,0]} 1. d4 {[%emt 0:00:08]} Nf6 {[%emt 0:00:07]} 2. Nf3 {[%emt 0:00:10]} g6 {[%emt 0:00:07]} 3. Nbd2 {[%emt 0:00:07]} d5 {[%emt 0:01:04]} 4. g3 {[%emt 0:01:54]} Bg7 {[%emt 0:00:07]} 5. Bg2 {[%emt 0:00:06]} O-O {[%emt 0:00:21]} 6. O-O {[%emt 0:00:11]} a5 {[%emt 0:01:17]} 7. c4 {[%emt 0:02:41] 7.a4 injects fresh life into this line.} c6 {[%emt 0:00:06]} 8. b3 {[%emt 0:02:35]} Na6 {[%emt 0:04:17][%cal Bb8a6,Ba6b4,Bb4a2][%mdl 32] D78: Fianchetto Grünfeld: 6 0-0 c6.} 9. Bb2 {[%emt 0:05:21]} h6 {[%emt 0:00:46] [#]} 10. Rc1 $146 {[%emt 0:05:54]} ({Predecessor:} 10. a3 Be6 11. Qc2 Rc8 12. Rac1 c5 13. Qd1 Ne4 14. Nxe4 dxe4 15. Ne5 cxd4 16. Qxd4 {1-0 (27) Krol,M (1519)-Grzelachowski,P Poznan 2012}) 10... Be6 {[%emt 0:01:18] White is slightly better.} 11. Ne5 {[%emt 0:03:09][%cal Bf3e5,Be5d3,Bd3f4][%mdl 32]} Nd7 {[%emt 0:01:25]} 12. Nd3 {[%emt 0:01:12]} Nb4 {[%emt 0:04:02]} 13. Nf4 $1 {[%emt 0:08:12]} Nxa2 {[%emt 0:00:23]} 14. Ra1 {[%emt 0:00:36]} Nb4 {[%emt 0:00:04]} 15. Nxe6 {[%emt 0:00:17]} fxe6 {[%emt 0:00:06]} 16. Nf3 {[%emt 0:01:31] Against e5} c5 {[%emt 0:05:11]} 17. Qb1 {[%emt 0:02:53]} Qe8 {[%emt 0:05:08]} 18. Bh3 {[%emt 0:03:02]} Ra6 {[%emt 0:00:50]} 19. dxc5 {[%emt 0:07:20]} Nxc5 {[%emt 0:01:33]} 20. Bxg7 {[%emt 0:00:48]} Kxg7 {[%emt 0:00:11]} 21. Qb2+ {[%emt 0:02:52]} Kh7 {[%emt 0:01:32]} 22. Bg2 {[%emt 0:03:59]} Qf7 {[%emt 0:03:18]} 23. Ne5 {[%emt 0:04:10]} Qf5 {[%emt 0:02:19]} 24. cxd5 {[%emt 0:04:51]} exd5 {[%emt 0:01:18]} 25. Rac1 {[%emt 0:00:12]} b6 {[%emt 0:10:13]} 26. f4 {[%emt 0:00:23]} e6 {[%emt 0:01:26]} ({Better is} 26... Qe6 $15) 27. g4 $11 {[%emt 0:18:57][%mdl 1024] White has compensation.} Qf6 {[%emt 0:00:07]} 28. Rc3 {[%emt 0:00:10]} ({White should play} 28. Qb1 $11) 28... Qg7 $1 $15 {[%emt 0:11:28]} 29. h4 {[%emt 0:07:22]} (29. g5 $11) 29... Ra7 {[%emt 0:03:49][%cal Ba6a7,Ba7d7,Bd7g7][%mdl 32]} 30. Qb1 {[%emt 0:00:15]} Nd7 {[%emt 0:06:35] Pair of Knights!} 31. h5 $1 {[%emt 0:02:29][%cal Re5g6]} Kg8 {[%emt 0:03:29]} 32. Re3 {[%emt 0:02:46]} ({Of course not} 32. Qxg6 Nxe5 33. fxe5 Qxg6 34. hxg6 Rxf1+ 35. Bxf1 Kg7 $17) (32. Nxd7 $11 Rxd7 33. Qxg6) 32... gxh5 {[%emt 0:04:20] [#] aiming for ...Nxe5.} (32... Nxe5 {keeps more tension.} 33. Rxe5 Re7 34. Qxg6 Qxg6 35. hxg6 Kg7) 33. Nxd7 {[%emt 0:00:46] The position is equal.} Rxd7 {[%emt 0:00:39]} 34. Rxe6 {[%emt 0:00:08] Strongly threatening Rg6.} Rf6 {[%emt 0:00:53] Inhibits Rg6.} (34... hxg4 $2 35. Rg6 $18) 35. Rxf6 {[%emt 0:02:23]} Qxf6 {[%emt 0:00:08]} 36. gxh5 {[%emt 0:00:10]} Rg7 {[%emt 0:00:26]} 37. Rf3 {[%emt 0:01:10]} Nc6 {[%emt 0:05:15]} 38. Qd3 {[%emt 0:00:47]} Ne7 {[%emt 0:02:18]} 39. Rg3 {[%emt 0:01:10]} Qxf4 {[%emt 0:01:02]} 40. Bxd5+ {[%emt 0:00:39]} Kh8 {[%emt 0:00:10]} 41. Rxg7 {[%emt 0:15:17] Really sharp!} Kxg7 $11 {[%emt 0:15:16][%mdl 4096] Endgame KQB-KQN} 42. Bf3 {[%emt 0:01:54]} Kf6 {[%emt 0:03:21]} 43. Qd8 {[%emt 0:00:14]} Qe3+ {[%emt 0:01:32]} 44. Kg2 {[%emt 0:00:14]} Qg5+ {[%emt 0:00:43]} 45. Kf1 {[%emt 0:00:05]} Qc1+ {[%emt 0:00:40]} 46. Kg2 {[%emt 0:00:06] [#] Threatens to win with Qf8+.} Qg5+ {[%emt 0:00:03]} 47. Kf1 {[%emt 0:00:02]} Qc1+ {[%emt 0:00:06] Weighted Error Value: White=0.08 (flawless) /Black=0.08 (flawless)} 1/2-1/2

[Event "FISCA IM Round Robin 2022"]
[Site "Cap Aurora"]
[Date "2022.06.28"]
[Round "8.3"]
[White "Ciolacu, Alessia-Mihaela"]
[Black "Dev, Shah"]
[Result "0-1"]
[ECO "D12"]
[WhiteElo "2198"]
[BlackElo "2292"]
[Annotator "TA"]
[PlyCount "86"]
[EventDate "2022.06.22"]
[EventType "tourn"]
[EventCountry "ROU"]
[SourceTitle "playchess.com"]
[Source "ChessBase"]
[SourceQuality "1"]
[TimeControl "40/5400+30:900+30"]

{[%evp 15,86,32,28,26,30,8,26,28,23,19,19,14,10,6,45,0,10,9,19,17,14,19,22,0,52,-8,0,-12,-8,-23,0,0,0,0,0,0,0,0,0,0,0,0,0,0,0,-20,0,-513,-488,-495,-462,-431,-401,-1102,-1105,-1073,-1063,-985,-791,-816,-816,-812,-806,-1047,-1044,-1029,-1015,-1139,-1089,-2615,-1809,-5389,-1279]} 1. d4 {[%emt 0:01:50]} d5 {[%emt 0:00:47]} 2. c4 {[%emt 0:00:05]} c6 {[%emt 0:00:04]} 3. Nf3 {[%emt 0:00:08]} Nf6 {[%emt 0:00:05]} 4. e3 {[%emt 0:00:07]} Bf5 {[%emt 0:00:05]} 5. Nc3 {[%emt 0:00:14]} e6 {[%emt 0:00:05]} 6. Nh4 {[%emt 0:00:21]} Be4 {[%emt 0:00:06]} 7. f3 {[%emt 0:00:05]} Bg6 {[%emt 0:00:04]} 8. Qb3 {[%emt 0:00:07]} Qc7 {[%emt 0:00:04]} 9. g3 {[%emt 0:07:03] D12: Slav Defence: 3 Nf3 Nf6 4 e3 Bf5.} Be7 {[%emt 0:00:51]} 10. Bd2 {[%emt 0:00:33]} O-O {[%emt 0:00:08]} 11. Nxg6 {[%emt 0:01:13] White has an edge.} hxg6 {[%emt 0:00:20]} 12. Rc1 {[%emt 0:00:31]} dxc4 {[%emt 0:02:39]} 13. Bxc4 {[%emt 0:00:07]} a6 {[%emt 0:03:59]} 14. Be2 {[%emt 0:03:05]} b5 {[%emt 0:01:42]} 15. O-O {[%emt 0:05:42]} Nbd7 {[%emt 0:03:16]} 16. Kg2 {[%emt 0:06:17]} c5 {[%emt 0:03:58]} 17. e4 {[%emt 0:14:05]} Qa7 {[%emt 0:19:26]} ({Not} 17... cxd4 {[#]} 18. Nd5 $1 Qd8 19. Nxe7+ Qxe7 20. Bb4 $16) 18. dxc5 {[%emt 0:02:48]} Bxc5 {[%emt 0:03:55]} 19. Rfd1 {[%emt 0:07:04] [#]} Bd4 $146 {[%emt 0:06:31]} (19... Rfc8 $11) ({Predecessor:} 19... Ne5 20. Bf4 Nc6 21. Rd2 e5 22. Bg5 Nh7 23. Nd5 Nxg5 24. Qc3 Ne6 25. b4 Nxb4 26. Nxb4 {0-1 (36) Perunovic,M (2436)-Pershin,D (2400) Skopje 2018}) 20. Bf4 {[%emt 0:21:47]} ({Better is} 20. a4 $14) 20... e5 {[%emt 0:02:53]} 21. Bg5 {[%emt 0:00:15]} Nc5 {[%emt 0:00:23]} 22. Qc2 {[%emt 0:03:21]} (22. Qa3 $5 {[%cal Rg5f6]}) 22... Rac8 {[%emt 0:08:34]} (22... Ne6 $5 {[%cal Re6g5]} 23. Bxf6 gxf6 $11) 23. Bxf6 {[%emt 0:05:49]} gxf6 {[%emt 0:00:23]} 24. Nd5 {[%emt 0:01:23]} Kg7 {[%emt 0:00:14]} 25. b4 {[%emt 0:01:15]} Na4 {[%emt 0:01:11]} 26. Qxc8 {[%emt 0:00:47]} Rxc8 {[%emt 0:00:09]} 27. Rxc8 {[%emt 0:00:02]} Nb6 {[%emt 0:00:22]} 28. Nxb6 {[%emt 0:00:44]} Qxb6 {[%emt 0:00:11]} 29. Rc2 {[%emt 0:06:29]} Qd6 {[%emt 0:01:29]} 30. Rb1 {[%emt 0:03:33]} Ba7 {[%emt 0:03:18]} 31. Rcc1 $2 {[%emt 0:07:58][%mdl 8192]} (31. a3 $11) 31... Qd2 $1 $19 {[%emt 0:00:34][%csl LRa2,LRe2]} 32. Re1 {[%emt 0:00:15]} Qxa2 {[%emt 0:00:16]} 33. Ra1 {[%emt 0:01:06]} Qd2 {[%emt 0:00:02]} 34. Kh1 {[%emt 0:00:45]} (34. Rad1 $142 Qxb4 35. Rb1) 34... Bf2 {[%emt 0:01:27] Black is clearly winning.} 35. Rad1 {[%emt 0:00:25]} Qh6 {[%emt 0:00:07] [#] ( -> ...Bxg3)} ({Weaker is} 35... Bxe1 36. Rxd2 Bxd2 37. Kg2 $17) 36. Rg1 {[%emt 0:00:33]} Bxg1 {[%emt 0:00:07]} 37. Kxg1 {[%emt 0:00:02][%mdl 4096] Endgame KQ-KRB} Qe3+ {[%emt 0:00:39]} 38. Kf1 {[%emt 0:00:01]} Qb3 {[%emt 0:01:06]} 39. Ra1 {[%emt 0:01:02]} Qxb4 {[%emt 0:00:09]} 40. Rxa6 {[%emt 0:00:01]} Qb1+ {[%emt 0:00:23]} 41. Kg2 {[%emt 0:15:09]} b4 {[%emt 0:15:03][%cal Bb5b4,Bb4b3][%mdl 32] And now ...Qc2 would win.} 42. Kh3 {[%emt 0:01:05]} b3 {[%emt 0:00:24]} 43. Bc4 {[%emt 0:00:40]} Qc2 {[%emt 0:00:02] Weighted Error Value: White=0.86/Black=0.27 (precise)} (43... Qc1 $142 44. Rc6 b2) 0-1

[Event "FISCA IM Round Robin 2022"]
[Site "Cap Aurora"]
[Date "2022.06.28"]
[Round "8.4"]
[White "Voiteanu, Gabriel"]
[Black "Cosman, Andreea-Marioara"]
[Result "0-1"]
[ECO "E76"]
[WhiteElo "2189"]
[BlackElo "2120"]
[Annotator "RC"]
[PlyCount "64"]
[EventDate "2022.06.22"]
[EventType "tourn"]
[EventCountry "ROU"]
[SourceTitle "playchess.com"]
[Source "ChessBase"]
[SourceQuality "1"]
[TimeControl "40/5400+30:900+30"]

1. d4 {[%emt 0:06:25]} Nf6 {[%emt 0:00:06]} 2. c4 {[%emt 0:00:03]} c5 {[%emt 0:00:08]} 3. d5 {[%emt 0:00:09]} e6 {[%emt 0:00:13]} 4. Nc3 {[%emt 0:00:06]} d6 {[%emt 0:00:05]} 5. e4 {[%emt 0:00:18]} g6 {[%emt 0:00:11]} 6. f4 {[%emt 0:12:00]} Bg7 {[%emt 0:00:51]} 7. Bd3 {[%emt 0:12:23]} exd5 {[%emt 0:01:35]} 8. Nxd5 {[%emt 0:04:19]} Nxd5 {[%emt 0:00:16]} 9. exd5 {[%emt 0:02:51]} O-O {[%emt 0:01:59]} 10. Ne2 {[%emt 0:02:21]} Qh4+ {[%emt 0:01:37]} 11. g3 {[%emt 0:01:21]} Qh3 {[%emt 0:12:24]} 12. Kf2 {[%emt 0:05:51]} Re8 {[%emt 0:08:33]} 13. Qf1 {[%emt 0:15:11]} Qd7 {[%emt 0:00:53]} 14. h3 {[%emt 0:06:45]} Na6 {[%emt 0:06:43]} 15. Nc3 {[%emt 0:05:54]} Nc7 {[%emt 0:00:07]} 16. a4 {[%emt 0:04:52]} Na6 {[%emt 0:11:16]} 17. f5 {[%emt 0:03:27]} Nb4 {[%emt 0:04:17]} 18. Bb1 {[%emt 0:02:54]} Qe7 {[%emt 0:10:40]} 19. h4 {[%emt 0:03:09]} Bxf5 {[%emt 0:01:52]} 20. Bxf5 {[%emt 0:00:26]} gxf5 {[%emt 0:00:08]} 21. Bf4 {[%emt 0:01:35]} Nc2 {[%emt 0:15:59]} 22. Rd1 {[%emt 0:00:43]} Ne3 {[%emt 0:07:45]} 23. Bxe3 {[%emt 0:00:48]} Qxe3+ {[%emt 0:00:06]} 24. Kg2 {[%emt 0:00:03]} Bxc3 {[%emt 0:01:50]} 25. bxc3 {[%emt 0:00:28]} Re5 {[%emt 0:00:39]} 26. Rd3 {[%emt 0:03:00]} Qe4+ {[%emt 0:00:37]} 27. Rf3 {[%emt 0:00:09]} Rae8 {[%emt 0:01:22]} 28. h5 {[%emt 0:00:52]} Qc2+ {[%emt 0:12:18]} 29. Kh3 {[%emt 0:00:49]} h6 {[%emt 0:00:00]} 30. a5 {[%emt 0:00:54]} Re2 {[%emt 0:00:00]} 31. Rxf5 {[%emt 0:01:05]} Re1 {[%emt 0:00:00]} 32. Rh2 {[%emt 0:04:21]} Rxf1 {[%emt 0:00:00]} 0-1

[Event "FISCA IM Round Robin 2022"]
[Site "Cap Aurora"]
[Date "2022.06.28"]
[Round "8.5"]
[White "Sanz Wawer, Daniel"]
[Black "Antonica, Dragos-Andrei"]
[Result "1/2-1/2"]
[ECO "C07"]
[WhiteElo "2363"]
[BlackElo "2355"]
[Annotator "TA"]
[PlyCount "136"]
[EventDate "2022.06.22"]
[EventType "tourn"]
[EventCountry "ROU"]
[SourceTitle "playchess.com"]
[Source "ChessBase"]
[SourceQuality "1"]
[TimeControl "40/5400+30:900+30"]

{[%evp 19,136,26,20,0,0,0,0,0,0,0,7,7,4,3,10,0,0,0,0,0,0,-5,0,0,0,0,14,13,12,13,14,13,12,0,0,0,0,0,0,0,10,0,0,0,0,0,12,14,17,13,26,15,15,16,44,44,44,0,44,44,44,44,44,44,44,44,44,44,44,14,14,14,14,14,14,14,14,14,14,14,14,14,14,14,14,14,14,14,14,0,0,0,0,14,14,0,0,0,0,0,0,0,0,0,0,0,0,0,0,0,0,0,0,0,0,0,0,0,0]} 1. e4 {[%emt 0:00:03]} e6 {[%emt 0:00:21]} 2. d4 {[%emt 0:00:05]} d5 {[%emt 0:00:01]} 3. Nd2 {[%emt 0:00:08]} c5 {[%emt 0:00:33]} 4. exd5 {[%emt 0:00:04]} Qxd5 {[%emt 0:00:06]} 5. Ngf3 {[%emt 0:00:05][%cal Bg1f3,Bf3d4,Bd4b5][%mdl 32]} cxd4 {[%emt 0:00:09]} 6. Bc4 {[%emt 0:00:04]} Qd6 {[%emt 0:00:05]} 7. O-O {[%emt 0:00:07]} Nf6 {[%emt 0:00:04]} 8. Nb3 {[%emt 0:00:12]} Nc6 {[%emt 0:00:11]} 9. Nbxd4 {[%emt 0:00:06]} Nxd4 {[%emt 0:00:23]} 10. Nxd4 {[%emt 0:00:05]} Be7 {[%emt 0:00:12]} 11. Nb5 {[%emt 0:07:26] C07: French Tarrasch: 3...c5, 4 Ngf3 and 4 exd5 Qxd5.} Qc6 {[%emt 0:00:58]} 12. Qe2 {[%emt 0:00:54][%cal Ob5a7]} a6 {[%emt 0:02:39]} 13. Bf4 {[%emt 0:05:21] [#] Hoping for Nc7+.} O-O $1 {[%emt 0:03:11]} (13... axb5 $2 14. Bxb5 Bd7 15. Bxc6 $18) 14. Nd4 {[%emt 0:04:07]} Qe4 {[%emt 0:15:16]} 15. Qxe4 {[%emt 0:00:37]} Nxe4 {[%emt 0:00:02]} 16. Rfe1 {[%emt 0:00:50]} Nf6 {[%emt 0:09:58] [#]} (16... Nc5 {keeps more tension.} 17. Nf5 Bf6 18. Bd6 Bd7) 17. Rad1 $146 {[%emt 0:16:29]} ({Predecessor:} 17. a4 Rd8 18. c3 Bd7 19. Bb3 Bc5 20. Rad1 b5 21. axb5 axb5 22. h3 b4 23. c4 {½-½ (29) Shehzad,S (2173)-Unneland,M (2029) Skien 2019}) 17... b5 {[%emt 0:13:29]} 18. Bb3 {[%emt 0:01:12]} Bc5 {[%emt 0:10:25]} 19. Nc6 {[%emt 0:17:00]} Bb7 {[%emt 0:09:03]} 20. Bd6 {[%emt 0:03:17]} Bxc6 {[%emt 0:12:37]} 21. Bxc5 {[%emt 0:00:26]} Rfc8 {[%emt 0:00:15]} 22. Bd4 {[%emt 0:08:52]} Bd5 {[%emt 0:06:57]} 23. Bxf6 {[%emt 0:03:39]} Bxb3 {[%emt 0:00:16]} 24. axb3 {[%emt 0:00:51] [#] Strongly threatening Bc3.} gxf6 $11 {[%emt 0:00:05][%mdl 4096] Endgame KRR-KRR} 25. c3 {[%emt 0:00:33]} a5 {[%emt 0:04:36]} 26. g3 {[%emt 0:01:07]} a4 {[%emt 0:03:32]} 27. bxa4 {[%emt 0:00:05]} Rxa4 {[%emt 0:03:23]} 28. Ra1 {[%emt 0:01:47]} Rac4 {[%emt 0:00:35]} 29. Re3 {[%emt 0:02:04]} Rd8 {[%emt 0:01:32]} 30. b3 {[%emt 0:05:32]} Rc7 {[%emt 0:01:06]} 31. Ra5 {[%emt 0:03:42]} Rd1+ {[%emt 0:01:09]} 32. Kg2 {[%emt 0:00:04]} Rb7 {[%emt 0:00:50]} 33. Re4 {[%emt 0:01:25]} f5 {[%emt 0:01:30]} 34. Rb4 {[%emt 0:06:44]} Rc7 $1 {[%emt 0:00:21]} 35. Raxb5 {[%emt 0:01:33]} Rxc3 {[%emt 0:00:05]} 36. g4 {[%emt 0:03:31]} Rb1 {[%emt 0:01:51]} 37. gxf5 {[%emt 0:01:56]} exf5 {[%emt 0:00:02]} 38. Rb7 {[%emt 0:03:38]} (38. Rxf5 $5 {[%cal Rb4b8]} Rbxb3 39. Rg4+ Kf8 40. Rh4 $16) 38... Rb2 {[%emt 0:00:48]} 39. R4b5 {[%emt 0:01:01]} h6 {[%emt 0:00:47]} 40. Rxf5 {[%emt 0:01:38]} Rcxb3 {[%emt 0:00:19]} 41. Rbxf7 {[%emt 0:15:11]} Rb7 {[%emt 0:15:22]} 42. Rf8+ {[%emt 0:00:28]} Kg7 {[%emt 0:00:09]} 43. Rf3 {[%emt 0:00:21]} R2b5 {[%emt 0:00:51]} 44. h4 {[%emt 0:01:15]} Rb3 {[%emt 0:00:43] The position is equal.} 45. Rxb3 {[%emt 0:00:56]} Rxb3 {[%emt 0:00:04] KR-KR} 46. Rf5 {[%emt 0:00:05]} Kg6 {[%emt 0:00:25]} 47. Rc5 {[%emt 0:00:07]} Ra3 {[%emt 0:00:51]} 48. f3 {[%emt 0:00:05]} Ra4 {[%emt 0:00:42]} 49. Kg3 {[%emt 0:00:05]} Rb4 {[%emt 0:00:28]} 50. Re5 {[%emt 0:01:19]} Ra4 {[%emt 0:00:37]} 51. Re4 {[%emt 0:00:16]} Ra1 {[%emt 0:00:22]} 52. Re6+ {[%emt 0:00:44]} Kh5 {[%emt 0:00:36]} 53. Re5+ {[%emt 0:00:04]} Kg6 {[%emt 0:00:06]} 54. h5+ {[%emt 0:01:48]} Kf6 {[%emt 0:00:12]} 55. Rb5 {[%emt 0:00:04]} Ra4 {[%emt 0:00:52]} 56. f4 {[%emt 0:00:46]} Ra1 {[%emt 0:00:36]} 57. Rb6+ {[%emt 0:00:53]} Kf5 {[%emt 0:00:15]} 58. Rxh6 {[%emt 0:00:06]} Rg1+ {[%emt 0:01:02]} 59. Kh3 {[%emt 0:00:19]} Rh1+ {[%emt 0:00:30]} 60. Kg2 {[%emt 0:00:28]} Rh4 {[%emt 0:00:22]} 61. Ra6 {[%emt 0:00:58]} Rxf4 {[%emt 0:00:34]} 62. h6 {[%emt 0:00:22]} Kg5 {[%emt 0:00:35]} 63. h7 {[%emt 0:00:29]} Rh4 {[%emt 0:00:19]} 64. Ra5+ {[%emt 0:00:23]} Kg6 {[%emt 0:00:17]} 65. Ra4 {[%emt 0:00:11]} Rxh7 {[%emt 0:00:09]} 66. Ra6+ {[%emt 0:00:02]} Kg7 {[%emt 0:00:07]} 67. Ra7+ {[%emt 0:00:03]} Kg8 {[%emt 0:00:05]} 68. Rxh7 {[%emt 0:00:03]} Kxh7 {[%emt 0:00:04] Weighted Error Value: White=0.03 (flawless) /Black=0.03 (flawless)} 1/2-1/2

[Event "FISCA IM Round Robin 2022"]
[Site "Cap Aurora"]
[Date "2022.06.29"]
[Round "9.1"]
[White "Antonica, Dragos-Andrei"]
[Black "Cosma, Ioan"]
[Result "1/2-1/2"]
[ECO "D36"]
[WhiteElo "2355"]
[BlackElo "2394"]
[Annotator "TA"]
[PlyCount "40"]
[EventDate "2022.06.22"]
[EventType "tourn"]
[EventCountry "ROU"]
[SourceTitle "playchess.com"]
[Source "ChessBase"]
[SourceQuality "1"]
[TimeControl "40/5400+30:900+30"]

{[%evp 19,20,20,27]} 1. c4 {[%emt 0:00:03]} e6 {[%emt 0:00:08]} 2. Nc3 {[%emt 0:00:04]} d5 {[%emt 0:00:06]} 3. cxd5 {[%emt 0:00:10]} exd5 {[%emt 0:00:04]} 4. d4 {[%emt 0:00:01]} Nf6 {[%emt 0:00:06]} 5. Bg5 {[%emt 0:00:08]} Be7 {[%emt 0:00:07]} 6. e3 {[%emt 0:00:05]} c6 {[%emt 0:00:05]} 7. Qc2 {[%emt 0:00:12]} Nbd7 {[%emt 0:00:09]} 8. Bd3 {[%emt 0:00:14]} Nh5 {[%emt 0:00:13]} 9. Bxe7 {[%emt 0:00:08]} Qxe7 {[%emt 0:00:06]} 10. Nge2 {[%emt 0:00:15]} g6 {[%emt 1:34:26] [#] 10...Nb6 is the modern continuation.} {Predecessor:} 11. O-O $146 {D36: Queen's Gambit Declined: Exchange Variation: Main line (5 Bg5 c6 6 Qc2).} O-O 12. Rae1 Ndf6 13. Nc1 Be6 14. f3 b6 15. Qf2 c5 16. Qh4 Qd8 17. g4 Ng7 18. N1e2 Rb8 19. a4 c4 20. Bc2 a6 {0-1 (58) Caruana,F (2806)-Jumabayev,R (2637) Krasnaya Polyana 2021} 1/2-1/2

[Event "FISCA IM Round Robin 2022"]
[Site "Cap Aurora"]
[Date "2022.06.29"]
[Round "9.2"]
[White "Cosman, Andreea-Marioara"]
[Black "Sanz Wawer, Daniel"]
[Result "1/2-1/2"]
[ECO "E46"]
[WhiteElo "2120"]
[BlackElo "2363"]
[Annotator "TA"]
[PlyCount "66"]
[EventDate "2022.06.22"]
[EventType "tourn"]
[EventCountry "ROU"]
[SourceTitle "playchess.com"]
[Source "ChessBase"]
[SourceQuality "1"]
[TimeControl "40/5400+30:900+30"]

{[%evp 9,66,-1,8,11,6,6,11,9,14,-10,4,1,3,0,0,0,8,-7,-15,-14,-10,-6,-9,-16,-14,-9,-15,-18,0,-7,16,-16,-14,-15,-19,-22,0,-62,-55,-33,0,-80,0,0,0,0,0,0,0,0,0,0,20,0,14,13,48,19,43]} 1. d4 {[%emt 0:00:04]} Nf6 {[%emt 0:00:55]} 2. c4 {[%emt 0:00:03]} e6 {[%emt 0:00:05]} 3. Nc3 {[%emt 0:00:05]} Bb4 {[%emt 0:00:04]} 4. e3 {[%emt 0:00:06]} O-O {[%emt 0:00:39]} 5. Bd2 {[%emt 0:00:08]} c5 {[%emt 0:00:05]} 6. a3 {[%emt 0:01:26] E46: Nimzo-Indian: Rubinstein: 4 e3 0-0 5 Ne2 without early Bd3.} Bxc3 {[%emt 0:00:24]} 7. Bxc3 {[%emt 0:00:08]} Ne4 {[%emt 0:00:47]} 8. Rc1 {[%emt 0:01:01]} d6 {[%emt 0:07:28]} 9. Nf3 {[%emt 0:08:14]} Nd7 {[%emt 0:08:34]} 10. Bd3 {[%emt 0:01:35] [#]} Nxc3 $146 {[%emt 0:01:43]} ({Predecessor:} 10... Ndf6 11. O-O Nxc3 12. Rxc3 Qe7 13. Ng5 e5 14. dxc5 dxc5 15. Qb1 g6 16. Ne4 Nd7 {1-0 (37) Zatonskih,A (2393)-Abrahamyan,T (2311) Saint Louis 2022}) 11. Rxc3 {[%emt 0:00:20]} Qe7 {[%emt 0:06:42]} 12. Qb1 {[%emt 0:04:40]} Nf6 {[%emt 0:04:33]} 13. dxc5 {[%emt 0:02:14]} dxc5 {[%emt 0:00:10]} 14. Ne5 {[%emt 0:00:04]} Qc7 {[%emt 0:01:14]} 15. f4 {[%emt 0:00:48]} b6 {[%emt 0:00:44]} 16. O-O {[%emt 0:08:04]} Bb7 {[%emt 0:00:11]} 17. Rd1 {[%emt 0:03:56]} Rad8 {[%emt 0:02:04]} 18. Bc2 {[%emt 0:05:38]} Ba8 {[%emt 0:00:51]} 19. Rcd3 {[%emt 0:04:47]} Qb7 {[%emt 0:04:08][%csl Ga8][%cal Rb7g2] [#]} 20. Nf3 {[%emt 0:00:08] Active counter play!} Rxd3 {[%emt 0:01:17]} 21. Rxd3 {[%emt 0:06:16]} g6 {[%emt 0:07:12][%cal Oe6e5]} 22. Qd1 {[%emt 0:15:25]} b5 {[%emt 0:02:49]} (22... e5 {is more complex.} 23. Rd8 exf4 24. Qd6 Rxd8 25. Qxd8+ Kg7) 23. cxb5 {[%emt 0:01:33]} (23. Rb3 $11) 23... Qxb5 $15 {[%emt 0:01:06]} 24. Rb3 {[%emt 0:04:15]} Qc6 {[%emt 0:01:39]} 25. Rd3 {[%emt 0:06:26]} (25. Qd2 $11) 25... Nd5 {[%emt 0:01:41]} ({Black should try} 25... Qb6 $17 26. Rb3 Qa6) 26. Ne5 $36 {[%emt 0:01:44][%mdl 2048] White is pushing.} Qb7 {[%emt 0:02:15][%cal Od5f4] [#] ...Nxf4! is the strong threat.} 27. Rb3 {[%emt 0:04:43]} Qc7 {[%emt 0:00:05] White must now prevent ...c4.} 28. Qe2 {[%emt 0:01:46]} Rd8 {[%emt 0:04:08]} 29. Be4 {[%emt 0:03:18]} f6 {[%emt 0:10:36]} 30. Nc4 {[%emt 0:00:50]} Qd7 {[%emt 0:00:33][%cal Od5f4]} 31. Bc2 {[%emt 0:06:39]} Qc6 {[%emt 0:02:36]} 32. Rd3 {[%emt 0:00:43] Strongly threatening e4.} Re8 {[%emt 0:05:50]} 33. Rd2 {[%emt 0:02:04]} Kg7 {[%emt 0:04:35] Weighted Error Value: White=0.15 (very precise) /Black=0.10 (very precise)} 1/2-1/2